[Event "FIDE World Cup 2013"]
[Site "TromsÃ¸"]
[Date "2013.08.13"]
[Round "1.4"]
[White "Li, Chao b"]
[Black "Postny, Evgeny"]
[Result "1/2-1/2"]
[ECO "E01"]
[WhiteElo "2686"]
[BlackElo "2631"]
[PlyCount "99"]
[EventDate "2013.??.??"]
[EventCountry "NOR"]
[TimeControl "1500+10"]

1. d4 {[%emt 0:00:00]} Nf6 {[%emt 0:00:00]} 2. c4 {[%emt 0:00:00]} e6 {[%emt 0:
00:00]} 3. g3 {[%emt 0:00:00]} d5 {[%emt 0:00:00]} 4. Bg2 {[%emt 0:00:00]} Bb4+
{[%emt 0:00:03]} 5. Bd2 {[%emt 0:00:00]} Bd6 {[%emt 0:00:02]} 6. Nf3 {[%emt 0:
00:24]} O-O {[%emt 0:00:04]} 7. Qc2 {[%emt 0:00:31]} Nbd7 {[%emt 0:00:48]} 8.
O-O {[%emt 0:00:09]} c6 {[%emt 0:00:02]} 9. Bg5 {[%emt 0:00:08]} dxc4 {[%emt 0:
01:04]} 10. Qxc4 {[%emt 0:00:34]} e5 {[%emt 0:01:02]} 11. Nc3 {[%emt 0:00:38]}
Qe7 {[%emt 0:00:17]} 12. Ne4 {[%emt 0:00:57]} exd4 {[%emt 0:03:10]} 13. Nxd6 {
[%emt 0:00:44]} Qxd6 {[%emt 0:00:02]} 14. Qxd4 {[%emt 0:00:05]} Qxd4 {[%emt 0:
00:22]} 15. Nxd4 {[%emt 0:00:02]} h6 {[%emt 0:00:18]} 16. Bf4 {[%emt 0:00:14]}
Re8 {[%emt 0:00:10]} 17. Rfe1 {[%emt 0:01:42]} Nc5 {[%emt 0:00:27]} 18. Bd6 {
[%emt 0:01:36]} Nfe4 {[%emt 0:00:46]} 19. Bxc5 {[%emt 0:00:34]} Nxc5 {[%emt 0:
00:02]} 20. Rac1 {[%emt 0:00:14]} Ne6 {[%emt 0:01:15]} 21. Nf5 {[%emt 0:01:22]}
Nc7 {[%emt 0:01:15]} 22. Nd6 {[%emt 0:00:16]} Rd8 {[%emt 0:00:07]} 23. Red1 {
[%emt 0:00:18]} Rb8 {[%emt 0:00:07]} 24. Nxc8 {[%emt 0:01:55]} Rbxc8 {[%emt 0:
00:03]} 25. e4 {[%emt 0:00:39]} Kf8 {[%emt 0:00:28]} 26. f4 {[%emt 0:00:21]}
Ke7 {[%emt 0:00:19]} 27. Kf2 {[%emt 0:00:01]} a5 {[%emt 0:01:45]} 28. Ke3 {
[%emt 0:00:03]} Na6 {[%emt 0:00:22]} 29. Bf3 {[%emt 0:00:43]} f6 {[%emt 0:01:
09]} 30. h4 {[%emt 0:00:02]} Nb4 {[%emt 0:02:50]} 31. a3 {[%emt 0:00:13]} Na6 {
[%emt 0:00:02]} 32. Be2 {[%emt 0:00:28]} Nc7 {[%emt 0:00:09]} 33. h5 {[%emt 0:
00:17]} Ne8 {[%emt 0:00:35]} 34. g4 {[%emt 0:00:47]} Nd6 {[%emt 0:00:17]} 35.
Rd4 {[%emt 0:01:17]} Ne8 {[%emt 0:01:30]} 36. Ra4 {[%emt 0:01:45]} b6 {[%emt 0:
01:46]} 37. b4 {[%emt 0:01:04]} axb4 {[%emt 0:00:16]} 38. axb4 {[%emt 0:00:35]}
Rc7 {[%emt 0:01:46]} 39. Ra6 {[%emt 0:00:04]} Rb8 {[%emt 0:00:03]} 40. e5 {
[%emt 0:00:10]} fxe5 {[%emt 0:00:10]} 41. fxe5 {[%emt 0:00:01]} c5 {[%emt 0:01:
43]} 42. bxc5 {[%emt 0:00:03]} bxc5 {[%emt 0:00:02]} 43. Bc4 {[%emt 0:00:06]}
Rd7 {[%emt 0:00:25]} 44. Ra5 {[%emt 0:03:09]} Rd4 {[%emt 0:00:38]} 45. Rxc5 {
[%emt 0:00:04]} Rxg4 {[%emt 0:00:04]} 46. Rf1 {[%emt 0:00:02]} Rg3+ {[%emt 0:
00:16]} 47. Ke4 {[%emt 0:00:10]} Rg4+ {[%emt 0:00:12]} 48. Ke3 {[%emt 0:00:01]}
Rg3+ {[%emt 0:01:12]} 49. Ke4 {[%emt 0:00:01]} Rg4+ {[%emt 0:01:33]} 50. Ke3 {
[%emt 0:00:04]} 1/2-1/2

[Event "FIDE World Cup 2013"]
[Site "TromsÃ¸"]
[Date "2013.08.13"]
[Round "1.4"]
[White "Melkumyan, Hrant"]
[Black "Granda Zuniga, Julio E"]
[Result "1-0"]
[ECO "E17"]
[WhiteElo "2632"]
[BlackElo "2679"]
[PlyCount "148"]
[EventDate "2013.??.??"]
[EventCountry "NOR"]
[TimeControl "1500+10"]

1. d4 {[%emt 0:00:00]} Nf6 {[%emt 0:00:00]} 2. c4 {[%emt 0:00:00]} e6 {[%emt 0:
00:00]} 3. Nf3 {[%emt 0:00:00]} b6 {[%emt 0:00:00]} 4. g3 {[%emt 0:00:06]} Bb7
{[%emt 0:00:00]} 5. Bg2 {[%emt 0:00:00]} Be7 {[%emt 0:00:00]} 6. O-O {[%emt 0:
00:00]} O-O {[%emt 0:00:02]} 7. Re1 {[%emt 0:00:00]} Qc8 {[%emt 0:00:31]} 8.
Bg5 {[%emt 0:00:00]} h6 {[%emt 0:00:15]} 9. Bxf6 {[%emt 0:00:01]} Bxf6 {[%emt
0:00:02]} 10. e4 {[%emt 0:00:01]} d6 {[%emt 0:00:21]} 11. Nc3 {[%emt 0:00:02]}
Nd7 {[%emt 0:00:46]} 12. Qd2 {[%emt 0:00:19]} Re8 {[%emt 0:01:09]} 13. Rad1 {
[%emt 0:00:15]} Be7 {[%emt 0:00:08]} 14. h4 {[%emt 0:01:49]} a6 {[%emt 0:00:53]
} 15. Bh3 {[%emt 0:01:45]} c5 {[%emt 0:09:23]} 16. d5 {[%emt 0:00:11]} e5 {
[%emt 0:00:02]} 17. Nh2 {[%emt 0:08:09]} Qd8 {[%emt 0:01:15]} 18. h5 {[%emt 0:
01:29]} Nf6 {[%emt 0:00:17]} 19. Qe2 {[%emt 0:00:01]} b5 {[%emt 0:00:22]} 20.
Nf1 {[%emt 0:00:42]} bxc4 {[%emt 0:00:31]} 21. Ne3 {[%emt 0:00:13]} a5 {[%emt
0:00:10]} 22. Bf5 {[%emt 0:02:38]} Ba6 {[%emt 0:00:20]} 23. Kh1 {[%emt 0:00:38]
} Qb6 {[%emt 0:01:57]} 24. Rg1 {[%emt 0:00:19]} Rab8 {[%emt 0:00:42]} 25. Rd2 {
[%emt 0:00:01]} Rb7 {[%emt 0:00:45]} 26. f4 {[%emt 0:00:07]} Bd8 {[%emt 0:00:
49]} 27. Qf3 {[%emt 0:00:06]} Qc7 {[%emt 0:01:25]} 28. Rf2 {[%emt 0:00:49]} Qb8
{[%emt 0:00:51]} 29. Rgg2 {[%emt 0:00:20]} a4 {[%emt 0:01:25]} 30. Nxa4 {[%emt
0:01:05]} c3 {[%emt 0:00:55]} 31. Nxc3 {[%emt 0:00:05]} Bd3 {[%emt 0:00:09]}
32. b3 {[%emt 0:02:29]} Ba5 {[%emt 0:00:57]} 33. Na4 {[%emt 0:02:41]} Rb4 {
[%emt 0:02:10]} 34. Nb2 {[%emt 0:01:56]} Bxe4 {[%emt 0:00:06]} 35. Bxe4 {[%emt
0:00:01]} Nxe4 36. Rf1 exf4 {[%emt 0:01:42]} 37. gxf4 {[%emt 0:00:03]} Qc8 {
[%emt 0:00:01]} 38. Nbc4 {[%emt 0:00:04]} Bd8 {[%emt 0:00:02]} 39. Rfg1 {[%emt
0:00:16]} Bf6 {[%emt 0:00:02]} 40. Ng4 {[%emt 0:00:10]} Bd4 {[%emt 0:00:10]}
41. Nge3 {[%emt 0:00:46]} Kh8 {[%emt 0:00:12]} 42. Re1 {[%emt 0:00:25]} Rb7 {
[%emt 0:00:04]} 43. Nc2 {[%emt 0:00:08]} f5 {[%emt 0:00:02]} 44. Rge2 {[%emt 0:
00:39]} Bf6 {[%emt 0:00:13]} 45. Qg2 {[%emt 0:00:22]} Qd8 {[%emt 0:00:32]} 46.
N2e3 {[%emt 0:00:43]} Nc3 {[%emt 0:00:29]} 47. Nxf5 {[%emt 0:00:32]} Rxe2 {
[%emt 0:00:10]} 48. Rxe2 {[%emt 0:00:00]} Nxe2 {[%emt 0:00:02]} 49. Qxe2 {
[%emt 0:00:01]} Be7 {[%emt 0:00:19]} 50. Qe6 {[%emt 0:00:14]} Bf8 {[%emt 0:00:
02]} 51. Kg2 {[%emt 0:00:10]} Ra7 {[%emt 0:00:21]} 52. a4 {[%emt 0:00:04]} Qf6
{[%emt 0:00:16]} 53. Qxf6 {[%emt 0:00:06]} gxf6 {[%emt 0:00:01]} 54. Kf3 {
[%emt 0:00:38]} Rb7 {[%emt 0:00:16]} 55. Na5 {[%emt 0:00:02]} Rb4 {[%emt 0:00:
03]} 56. Ne3 {[%emt 0:00:10]} Kg8 {[%emt 0:00:14]} 57. Nc2 {[%emt 0:00:04]} Rb8
{[%emt 0:00:11]} 58. Ke4 {[%emt 0:00:01]} Kf7 {[%emt 0:00:05]} 59. Ne3 {[%emt
0:00:01]} Be7 {[%emt 0:00:10]} 60. Nec4 {[%emt 0:00:12]} Ke8 {[%emt 0:00:25]}
61. Kf5 {[%emt 0:00:21]} Kd7 {[%emt 0:00:01]} 62. Nd2 {[%emt 0:00:17]} Rg8 {
[%emt 0:00:21]} 63. Nac4 {[%emt 0:00:09]} Bd8 {[%emt 0:00:07]} 64. Ne4 {[%emt
0:00:07]} Be7 {[%emt 0:00:09]} 65. Ncxd6 {[%emt 0:00:03]} Rg2 {[%emt 0:00:18]}
66. Nc4 {[%emt 0:00:01]} Rh2 {[%emt 0:00:04]} 67. d6 {[%emt 0:00:07]} Bd8 {
[%emt 0:00:01]} 68. Nxc5+ {[%emt 0:00:03]} Kc6 {[%emt 0:00:02]} 69. Ne6 {[%emt
0:00:01]} Kd7 {[%emt 0:00:05]} 70. Nxd8 {[%emt 0:00:09]} Kxd8 {[%emt 0:00:02]}
71. Kg6 {[%emt 0:00:01]} Kd7 {[%emt 0:00:01]} 72. f5 {[%emt 0:00:05]} Rh3 {
[%emt 0:00:06]} 73. a5 {[%emt 0:00:05]} Rxb3 {[%emt 0:00:02]} 74. a6 {[%emt 0:
00:05]} Kc6 {[%emt 0:00:05]} 1-0

[Event "FIDE World Cup 2013"]
[Site "TromsÃ¸"]
[Date "2013.08.13"]
[Round "1.4"]
[White "Morozevich, Alexander"]
[Black "Sambuev, Bator"]
[Result "1/2-1/2"]
[ECO "B07"]
[WhiteElo "2736"]
[BlackElo "2530"]
[PlyCount "99"]
[EventDate "2013.??.??"]
[EventCountry "NOR"]
[TimeControl "1500+10"]

1. e4 {[%emt 0:00:00]} d6 {[%emt 0:00:00]} 2. d4 {[%emt 0:00:04]} Nf6 {[%emt 0:
00:00]} 3. Nc3 {[%emt 0:00:01]} e5 {[%emt 0:00:00]} 4. dxe5 {[%emt 0:00:47]}
dxe5 {[%emt 0:00:00]} 5. Qxd8+ Kxd8 {[%emt 0:00:00]} 6. Bc4 {[%emt 0:00:03]}
Ke8 {[%emt 0:00:01]} 7. Nf3 {[%emt 0:00:02]} Bd6 {[%emt 0:00:02]} 8. Bg5 {
[%emt 0:00:39]} Nbd7 {[%emt 0:00:02]} 9. O-O-O {[%emt 0:00:03]} a6 {[%emt 0:00:
01]} 10. a4 {[%emt 0:00:01]} h6 {[%emt 0:00:16]} 11. Bh4 {[%emt 0:00:02]} g5 {
[%emt 0:01:16]} 12. Bg3 {[%emt 0:00:11]} Nh5 {[%emt 0:00:02]} 13. Nd5 {[%emt 0:
00:37]} f6 {[%emt 0:01:21]} 14. Rhe1 {[%emt 0:00:01]} Nc5 {[%emt 0:00:10]} 15.
a5 {[%emt 0:06:23]} Bg4 {[%emt 0:00:53]} 16. Re3 {[%emt 0:00:01]} Rf8 {[%emt 0:
00:19]} 17. b4 {[%emt 0:01:29]} Nd7 {[%emt 0:01:24]} 18. h3 {[%emt 0:00:24]}
Bxf3 {[%emt 0:00:06]} 19. Rxf3 {[%emt 0:00:01]} Nf4 {[%emt 0:00:06]} 20. Rc3 {
[%emt 0:01:40]} Rb8 {[%emt 0:04:53]} 21. Bxf4 {[%emt 0:02:01]} exf4 {[%emt 0:
00:06]} 22. Nxc7+ {[%emt 0:00:58]} Bxc7 {[%emt 0:00:12]} 23. Be6 {[%emt 0:00:
01]} Be5 {[%emt 0:00:55]} 24. Rcd3 {[%emt 0:03:20]} Bb2+ {[%emt 0:01:15]} 25.
Kxb2 {[%emt 0:00:02]} Ne5 {[%emt 0:00:01]} 26. Rc3 {[%emt 0:00:13]} Ke7 {[%emt
0:00:05]} 27. Bd5 {[%emt 0:00:18]} Rfd8 {[%emt 0:00:43]} 28. Rc7+ {[%emt 0:00:
19]} Rd7 {[%emt 0:00:01]} 29. Rxd7+ {[%emt 0:00:03]} Kxd7 {[%emt 0:00:23]} 30.
c4 {[%emt 0:01:16]} Kc7 {[%emt 0:00:49]} 31. Kc3 {[%emt 0:00:01]} Rd8 {[%emt 0:
00:47]} 32. Rb1 {[%emt 0:00:54]} h5 {[%emt 0:00:58]} 33. b5 {[%emt 0:00:06]}
Rb8 {[%emt 0:00:39]} 34. Kd4 {[%emt 0:00:48]} Nd7 {[%emt 0:02:56]} 35. c5 {
[%emt 0:00:51]} axb5 {[%emt 0:00:06]} 36. Rxb5 {[%emt 0:00:01]} g4 {[%emt 0:02:
03]} 37. h4 {[%emt 0:00:07]} Ne5 {[%emt 0:01:27]} 38. Rb6 {[%emt 0:00:12]} f3 {
[%emt 0:00:03]} 39. g3 {[%emt 0:00:15]} Nd7 {[%emt 0:00:03]} 40. Rb5 {[%emt 0:
01:04]} Ne5 {[%emt 0:01:54]} 41. Rb6 {[%emt 0:00:32]} Nd7 {[%emt 0:00:01]} 42.
Re6 {[%emt 0:00:28]} Ra8 {[%emt 0:00:13]} 43. c6 {[%emt 0:00:02]} bxc6 {[%emt
0:00:19]} 44. Rxc6+ {[%emt 0:00:01]} Kd8 {[%emt 0:00:03]} 45. a6 {[%emt 0:00:
03]} Ra7 {[%emt 0:00:10]} 46. Re6 {[%emt 0:00:36]} Rc7 {[%emt 0:00:55]} 47. Bc6
{[%emt 0:00:01]} Ra7 {[%emt 0:00:36]} 48. Rd6 {[%emt 0:00:43]} Rxa6 {[%emt 0:
00:01]} 49. Rxd7+ {[%emt 0:00:02]} Kc8 {[%emt 0:00:05]} 50. Bb7+ {[%emt 0:00:
02]} 1/2-1/2

[Event "FIDE World Cup 2013"]
[Site "TromsÃ¸"]
[Date "2013.08.13"]
[Round "1.4"]
[White "Movsesian, Sergei"]
[Black "Hammer, Jon Ludvig"]
[Result "1/2-1/2"]
[ECO "C65"]
[WhiteElo "2699"]
[BlackElo "2599"]
[PlyCount "192"]
[EventDate "2013.??.??"]
[EventCountry "NOR"]
[TimeControl "1500+10"]

1. e4 {[%emt 0:00:00]} e5 {[%emt 0:00:00]} 2. Nf3 {[%emt 0:00:00]} Nc6 {[%emt
0:00:00]} 3. Bb5 {[%emt 0:00:00]} Nf6 {[%emt 0:00:00]} 4. d3 {[%emt 0:00:00]}
Bc5 {[%emt 0:00:00]} 5. c3 {[%emt 0:00:00]} O-O {[%emt 0:00:07]} 6. O-O {[%emt
0:00:03]} d6 {[%emt 0:00:18]} 7. Nbd2 {[%emt 0:00:14]} Ne7 {[%emt 0:00:11]} 8.
Re1 {[%emt 0:01:05]} a6 {[%emt 0:01:08]} 9. Ba4 {[%emt 0:00:05]} Ba7 {[%emt 0:
00:04]} 10. Nf1 {[%emt 0:00:14]} Ng6 {[%emt 0:00:10]} 11. h3 {[%emt 0:00:28]}
b5 {[%emt 0:00:21]} 12. Bc2 {[%emt 0:00:05]} Bb7 {[%emt 0:00:02]} 13. Ng3 {
[%emt 0:00:20]} Re8 {[%emt 0:00:06]} 14. d4 {[%emt 0:00:42]} d5 {[%emt 0:03:13]
} 15. Nxe5 {[%emt 0:01:37]} Nxe5 {[%emt 0:02:54]} 16. dxe5 {[%emt 0:00:02]}
Nxe4 {[%emt 0:00:02]} 17. Nxe4 {[%emt 0:00:27]} dxe4 {[%emt 0:00:02]} 18. Qxd8
{[%emt 0:00:25]} Raxd8 {[%emt 0:00:02]} 19. Bf4 {[%emt 0:00:03]} e3 {[%emt 0:
00:57]} 20. Bxe3 {[%emt 0:00:32]} Bxe3 {[%emt 0:00:03]} 21. Rxe3 {[%emt 0:00:
02]} Rd2 {[%emt 0:00:01]} 22. Rc1 {[%emt 0:02:01]} Kf8 {[%emt 0:02:01]} 23. Kf1
{[%emt 0:00:33]} Ke7 {[%emt 0:02:58]} 24. Ke1 {[%emt 0:00:25]} Red8 {[%emt 0:
00:13]} 25. g4 {[%emt 0:01:59]} g5 {[%emt 0:02:16]} 26. b4 {[%emt 0:00:40]} h6
{[%emt 0:00:19]} 27. Bb3 {[%emt 0:01:31]} c5 {[%emt 0:02:26]} 28. bxc5 {[%emt
0:01:01]} Bc6 {[%emt 0:00:58]} 29. Bc2 {[%emt 0:11:18]} R2d5 {[%emt 0:00:03]}
30. a4 {[%emt 0:00:24]} Rxc5 {[%emt 0:00:30]} 31. axb5 {[%emt 0:00:03]} axb5 {
[%emt 0:01:05]} 32. Bf5 {[%emt 0:01:39]} b4 {[%emt 0:03:09]} 33. e6 {[%emt 0:
00:57]} bxc3 {[%emt 0:00:06]} 34. exf7+ {[%emt 0:00:02]} Kxf7 {[%emt 0:00:05]}
35. Rcxc3 {[%emt 0:00:25]} Rxc3 {[%emt 0:00:01]} 36. Rxc3 {[%emt 0:00:01]} Rd6
{[%emt 0:00:03]} 37. Ke2 {[%emt 0:00:20]} Kf6 {[%emt 0:00:02]} 38. Rc5 {[%emt
0:00:13]} Bd5 {[%emt 0:00:27]} 39. Bd3 {[%emt 0:01:03]} Bg2 {[%emt 0:01:08]}
40. h4 {[%emt 0:00:23]} gxh4 {[%emt 0:00:21]} 41. Rh5 {[%emt 0:00:02]} Bf1+ {
[%emt 0:02:37]} 42. Kxf1 {[%emt 0:00:01]} Rxd3 {[%emt 0:00:01]} 43. Kg2 {[%emt
0:00:07]} Kg6 {[%emt 0:00:30]} 44. Rxh4 {[%emt 0:00:08]} Rc3 {[%emt 0:00:56]}
45. Rh5 {[%emt 0:00:17]} Rb3 {[%emt 0:00:05]} 46. Rc5 {[%emt 0:00:10]} Ra3 {
[%emt 0:00:01]} 47. f3 {[%emt 0:00:08]} Rb3 {[%emt 0:00:05]} 48. Kg3 {[%emt 0:
00:01]} Ra3 {[%emt 0:00:09]} 49. Rc6+ {[%emt 0:00:09]} Kg7 {[%emt 0:00:01]} 50.
Rb6 {[%emt 0:00:05]} Rc3 {[%emt 0:00:15]} 51. Rb4 {[%emt 0:00:21]} Kg6 {[%emt
0:00:06]} 52. Kf4 {[%emt 0:00:01]} Ra3 {[%emt 0:00:04]} 53. Rb6+ {[%emt 0:00:
10]} Kg7 {[%emt 0:00:01]} 54. Re6 {[%emt 0:00:02]} Ra5 {[%emt 0:00:45]} 55. Re5
{[%emt 0:00:17]} Ra3 {[%emt 0:00:01]} 56. Ke4 {[%emt 0:00:25]} Kf6 {[%emt 0:00:
02]} 57. Rf5+ {[%emt 0:00:06]} Kg6 {[%emt 0:00:01]} 58. Rd5 {[%emt 0:00:04]}
Ra4+ {[%emt 0:00:31]} 59. Rd4 {[%emt 0:00:06]} Ra5 {[%emt 0:00:01]} 60. f4 {
[%emt 0:00:14]} Kg7 {[%emt 0:00:25]} 61. Rd7+ {[%emt 0:00:20]} Kf6 {[%emt 0:00:
02]} 62. Rd6+ {[%emt 0:00:05]} Kg7 {[%emt 0:00:01]} 63. Rd5 {[%emt 0:00:04]}
Ra7 {[%emt 0:00:20]} 64. Rb5 {[%emt 0:00:13]} Re7+ {[%emt 0:00:07]} 65. Kf3 {
[%emt 0:00:05]} Re1 {[%emt 0:00:12]} 66. Re5 {[%emt 0:00:16]} Rg1 {[%emt 0:00:
13]} 67. Re6 {[%emt 0:00:08]} Ra1 {[%emt 0:00:02]} 68. f5 {[%emt 0:00:13]} Rf1+
{[%emt 0:00:18]} 69. Ke4 {[%emt 0:00:07]} Ra1 {[%emt 0:00:22]} 70. Rg6+ {[%emt
0:00:11]} Kh7 {[%emt 0:00:01]} 71. Kf4 {[%emt 0:00:14]} Ra4+ {[%emt 0:00:04]}
72. Kg3 {[%emt 0:00:04]} Ra3+ {[%emt 0:00:02]} 73. Kh4 {[%emt 0:00:05]} Ra1 {
[%emt 0:00:02]} 74. Rb6 {[%emt 0:00:03]} Rh1+ {[%emt 0:00:13]} 75. Kg3 {[%emt
0:00:01]} Kg7 {[%emt 0:00:01]} 76. Re6 {[%emt 0:00:14]} Rf1 {[%emt 0:00:07]}
77. Re7+ {[%emt 0:00:42]} Kf6 {[%emt 0:00:02]} 78. Rh7 {[%emt 0:00:21]} Rh1 {
[%emt 0:00:01]} 79. Kg2 {[%emt 0:00:13]} Rh4 {[%emt 0:00:02]} 80. Kg3 {[%emt 0:
00:02]} Rh1 {[%emt 0:00:01]} 81. Kg2 {[%emt 0:00:17]} Rh4 {[%emt 0:00:01]} 82.
Kf3 {[%emt 0:00:00]} Rh1 {[%emt 0:00:01]} 83. Rh8 {[%emt 0:00:21]} Kg7 {[%emt
0:01:16]} 84. Rb8 {[%emt 0:00:02]} Rf1+ {[%emt 0:00:09]} 85. Kg2 {[%emt 0:00:
05]} Rf4 {[%emt 0:00:05]} 86. Kg3 {[%emt 0:00:02]} Rf1 {[%emt 0:00:01]} 87.
Rb7+ {[%emt 0:00:06]} Kf6 {[%emt 0:00:01]} 88. Rb6+ {[%emt 0:00:21]} Kg7 {
[%emt 0:00:02]} 89. Rc6 {[%emt 0:00:25]} h5 {[%emt 0:00:46]} 90. Rc7+ {[%emt 0:
00:12]} Kf8 {[%emt 0:00:20]} 91. g5 {[%emt 0:00:09]} Rxf5 {[%emt 0:00:04]} 92.
Kh4 {[%emt 0:00:00]} Kg8 {[%emt 0:00:01]} 93. Kxh5 {[%emt 0:00:01]} Rf8 {[%emt
0:00:00]} 94. Kh6 {[%emt 0:00:05]} Ra8 {[%emt 0:00:01]} 95. Rg7+ {[%emt 0:00:
13]} Kh8 {[%emt 0:00:01]} 96. Rb7 {[%emt 0:00:02]} Kg8 {[%emt 0:00:01]} 1/2-1/2

[Event "FIDE World Cup 2013"]
[Site "TromsÃ¸"]
[Date "2013.08.13"]
[Round "1.4"]
[White "Negi, Parimarjan"]
[Black "Kryvoruchko, Yuriy"]
[Result "0-1"]
[ECO "B33"]
[WhiteElo "2634"]
[BlackElo "2678"]
[PlyCount "144"]
[EventDate "2013.??.??"]
[EventCountry "NOR"]
[TimeControl "1500+10"]

1. e4 {[%emt 0:00:00]} c5 {[%emt 0:00:00]} 2. Nf3 {[%emt 0:00:00]} Nc6 {[%emt
0:00:00]} 3. Nc3 {[%emt 0:00:10]} Nf6 {[%emt 0:00:00]} 4. d4 {[%emt 0:00:21]}
cxd4 {[%emt 0:00:00]} 5. Nxd4 {[%emt 0:00:01]} e5 {[%emt 0:00:00]} 6. Ndb5 {
[%emt 0:00:11]} d6 {[%emt 0:00:01]} 7. Bg5 {[%emt 0:00:11]} a6 {[%emt 0:00:01]}
8. Na3 {[%emt 0:00:12]} b5 {[%emt 0:00:02]} 9. Nd5 {[%emt 0:00:12]} Be7 {[%emt
0:00:01]} 10. Bxf6 {[%emt 0:00:04]} Bxf6 {[%emt 0:00:02]} 11. c4 {[%emt 0:00:
03]} b4 {[%emt 0:00:31]} 12. Nc2 {[%emt 0:00:03]} O-O {[%emt 0:00:04]} 13. Be2
{[%emt 0:00:05]} Bg5 {[%emt 0:00:06]} 14. Ncxb4 {[%emt 0:00:24]} Nxb4 {[%emt 0:
00:03]} 15. Nxb4 {[%emt 0:00:01]} Qb6 {[%emt 0:01:27]} 16. Nd5 {[%emt 0:00:02]}
Qxb2 {[%emt 0:00:14]} 17. O-O {[%emt 0:00:02]} Qa3 {[%emt 0:01:09]} 18. Bg4 {
[%emt 0:01:16]} Bb7 {[%emt 0:01:18]} 19. Qb3 {[%emt 0:01:06]} Qxb3 {[%emt 0:00:
14]} 20. axb3 {[%emt 0:00:02]} a5 {[%emt 0:00:41]} 21. Ra2 {[%emt 0:01:20]} Bd8
{[%emt 0:00:10]} 22. Bd7 {[%emt 0:01:20]} Rb8 {[%emt 0:00:17]} 23. Ba4 {[%emt
0:02:12]} Bxd5 {[%emt 0:01:23]} 24. cxd5 {[%emt 0:01:16]} Rb4 {[%emt 0:00:02]}
25. f3 {[%emt 0:04:20]} Bb6+ {[%emt 0:00:02]} 26. Kh1 {[%emt 0:00:00]} Rc8 {
[%emt 0:00:08]} 27. Raa1 {[%emt 0:00:01]} g6 {[%emt 0:00:52]} 28. Rfc1 {[%emt
0:00:33]} Rb8 {[%emt 0:00:28]} 29. Rc6 {[%emt 0:01:08]} Bc5 {[%emt 0:00:19]}
30. Ra6 {[%emt 0:01:13]} Bb6 {[%emt 0:00:49]} 31. Rc1 {[%emt 0:00:02]} f5 {
[%emt 0:01:58]} 32. Rc4 {[%emt 0:01:02]} Rxc4 {[%emt 0:00:44]} 33. bxc4 {[%emt
0:00:01]} Bc5 {[%emt 0:00:20]} 34. Bb5 {[%emt 0:00:13]} fxe4 {[%emt 0:00:07]}
35. fxe4 {[%emt 0:02:03]} Rf8 {[%emt 0:00:02]} 36. g3 {[%emt 0:00:23]} Rf1+ {
[%emt 0:00:30]} 37. Kg2 {[%emt 0:00:02]} Re1 {[%emt 0:01:00]} 38. Rxa5 {[%emt
0:00:31]} Rxe4 {[%emt 0:00:09]} 39. Ra2 {[%emt 0:01:10]} Re1 {[%emt 0:00:02]}
40. Bd7 {[%emt 0:01:29]} e4 {[%emt 0:00:09]} 41. Bg4 {[%emt 0:01:45]} h5 {
[%emt 0:02:11]} 42. Be2 {[%emt 0:00:12]} Kg7 {[%emt 0:03:28]} 43. g4 {[%emt 0:
00:21]} h4 {[%emt 0:00:41]} 44. g5 {[%emt 0:00:44]} Be3 {[%emt 0:00:45]} 45. c5
{[%emt 0:00:54]} dxc5 {[%emt 0:04:52]} 46. d6 {[%emt 0:00:01]} Bxg5 {[%emt 0:
00:13]} 47. d7 {[%emt 0:00:08]} Rc1 {[%emt 0:02:11]} 48. Bg4 {[%emt 0:02:34]}
Kf7 {[%emt 0:00:18]} 49. Rd2 {[%emt 0:00:55]} Bd8 {[%emt 0:00:03]} 50. Rd6 {
[%emt 0:00:34]} Rc2+ {[%emt 0:00:07]} 51. Kg1 {[%emt 0:00:23]} c4 {[%emt 0:00:
20]} 52. Re6 {[%emt 0:00:11]} c3 {[%emt 0:00:16]} 53. Rxe4 {[%emt 0:00:12]} Rd2
{[%emt 0:00:02]} 54. Be6+ {[%emt 0:00:05]} Kf6 {[%emt 0:00:05]} 55. Bb3 {[%emt
0:00:05]} Rb2 {[%emt 0:02:12]} 56. Ba4 {[%emt 0:00:20]} c2 {[%emt 0:00:02]} 57.
Bxc2 {[%emt 0:00:08]} Rxc2 {[%emt 0:00:02]} 58. Rxh4 {[%emt 0:00:12]} Rd2 {
[%emt 0:00:08]} 59. Rh7 {[%emt 0:00:07]} Be7 {[%emt 0:00:02]} 60. h4 {[%emt 0:
00:08]} Rxd7 {[%emt 0:00:01]} 61. Kg2 {[%emt 0:00:01]} Rd5 {[%emt 0:00:13]} 62.
Kf3 {[%emt 0:00:11]} Ra5 {[%emt 0:00:13]} 63. Kg4 {[%emt 0:00:06]} Ra4+ {[%emt
0:00:02]} 64. Kh3 {[%emt 0:00:02]} Bc5 {[%emt 0:00:39]} 65. h5 {[%emt 0:00:27]}
g5 {[%emt 0:00:02]} 66. Rh6+ {[%emt 0:00:05]} Kf5 {[%emt 0:00:05]} 67. Rc6 {
[%emt 0:00:04]} Rh4+ {[%emt 0:00:04]} 68. Kg2 {[%emt 0:00:12]} Be3 {[%emt 0:00:
06]} 69. h6 {[%emt 0:00:24]} g4 {[%emt 0:00:20]} 70. Rc8 {[%emt 0:00:10]} Rxh6
{[%emt 0:00:06]} 71. Rf8+ {[%emt 0:00:06]} Rf6 {[%emt 0:00:03]} 72. Re8 {[%emt
0:00:02]} Bf4 {[%emt 0:00:02]} 0-1

[Event "FIDE World Cup 2013"]
[Site "TromsÃ¸"]
[Date "2013.08.13"]
[Round "1.4"]
[White "Radjabov, Teimour"]
[Black "Cori, Jorge"]
[Result "1-0"]
[ECO "A06"]
[WhiteElo "2733"]
[BlackElo "2543"]
[PlyCount "75"]
[EventDate "2013.??.??"]
[EventCountry "NOR"]
[TimeControl "1500+10"]

1. Nf3 {[%emt 0:00:00]} d5 {[%emt 0:00:00]} 2. g3 {[%emt 0:00:00]} Nf6 {[%emt
0:00:00]} 3. Bg2 {[%emt 0:00:00]} c6 {[%emt 0:00:00]} 4. b3 {[%emt 0:00:09]}
Bg4 {[%emt 0:00:12]} 5. Bb2 {[%emt 0:00:01]} Nbd7 {[%emt 0:00:01]} 6. O-O {
[%emt 0:00:01]} e6 {[%emt 0:00:01]} 7. d3 {[%emt 0:00:01]} Be7 {[%emt 0:00:49]}
8. Nbd2 {[%emt 0:00:02]} O-O {[%emt 0:00:01]} 9. e4 {[%emt 0:00:34]} a5 {[%emt
0:00:32]} 10. a3 {[%emt 0:00:05]} Bh5 {[%emt 0:00:25]} 11. Qe2 {[%emt 0:00:10]}
Qb8 {[%emt 0:01:49]} 12. Rfe1 {[%emt 0:00:19]} h6 {[%emt 0:01:16]} 13. h3 {
[%emt 0:00:35]} dxe4 {[%emt 0:01:51]} 14. dxe4 {[%emt 0:00:07]} Rd8 {[%emt 0:
00:02]} 15. Rad1 {[%emt 0:01:51]} Bg6 {[%emt 0:03:08]} 16. e5 {[%emt 0:08:09]}
Nd5 {[%emt 0:01:54]} 17. Nc4 {[%emt 0:00:19]} Nc5 {[%emt 0:01:03]} 18. Nd6 {
[%emt 0:05:02]} Bxd6 {[%emt 0:04:07]} 19. exd6 {[%emt 0:00:01]} Ne4 {[%emt 0:
00:01]} 20. Rd4 {[%emt 0:00:01]} Nxd6 {[%emt 0:00:46]} 21. Ne5 {[%emt 0:00:01]}
Nf5 {[%emt 0:03:06]} 22. Rd2 {[%emt 0:04:02]} Nfe7 {[%emt 0:01:50]} 23. Nxg6 {
[%emt 0:03:03]} Nxg6 {[%emt 0:00:01]} 24. Be4 {[%emt 0:00:01]} Nde7 {[%emt 0:
02:52]} 25. h4 {[%emt 0:00:01]} Rxd2 {[%emt 0:00:58]} 26. Qxd2 {[%emt 0:00:01]}
f6 {[%emt 0:01:53]} 27. Qe2 {[%emt 0:02:14]} Nf8 {[%emt 0:00:07]} 28. Bd3 {
[%emt 0:00:06]} Qd6 {[%emt 0:00:28]} 29. Rd1 {[%emt 0:00:01]} Qc7 {[%emt 0:00:
01]} 30. Qg4 {[%emt 0:00:05]} Kf7 {[%emt 0:00:06]} 31. Re1 {[%emt 0:00:03]} Rd8
{[%emt 0:00:02]} 32. Bc3 {[%emt 0:00:17]} b6 {[%emt 0:00:03]} 33. Bb2 {[%emt 0:
00:06]} Qd6 {[%emt 0:00:07]} 34. Re4 {[%emt 0:00:20]} Rd7 {[%emt 0:00:17]} 35.
Qh5+ {[%emt 0:00:11]} Neg6 {[%emt 0:00:34]} 36. Rd4 {[%emt 0:00:06]} Qe7 {
[%emt 0:00:11]} 37. Bxg6+ {[%emt 0:00:02]} Nxg6 {[%emt 0:00:05]} 38. Rg4 {
[%emt 0:00:01]} 1-0